fUSD/lending_fUSD_20260620
["ID","MTS","AMOUNT","RATE_DAILY","PERIOD"]
[425822797,1781939457000,-500.0,0.00028719,30]
[425822800,1781939457000,-500.0,0.00028737,2]
[425822823,1781939457000,-151.0,0.00028929,30]
[425822783,1781939457000,-157.09,0.0002863,2]
[425822782,1781939457000,-1430.29,0.0002863,2]
[425822786,1781939457000,-158.27,0.0002863,2]
[425822787,1781939457000,-166.97,0.0002863,30]
[425822785,1781939457000,-162.96,0.0002863,30]
[425822784,1781939457000,-164.31,0.0002863,30]
[425822789,1781939457000,-150.0,0.00028676,30]
[425822804,1781939457000,-196.26412966,0.00028766,2]
[425822794,1781939457000,-150.0,0.00028714,30]
[425822793,1781939457000,-150.0,0.00028714,30]
[425822798,1781939457000,-500.54648687,0.00028719,7]
[425822795,1781939457000,-157.09,0.00028716,7]
[425822788,1781939457000,-297.59955161,0.00028639,2]
[425822790,1781939457000,-245.88,0.00028686,7]
[425822791,1781939457000,-2816.54576312,0.000287,2]
[425822796,1781939457000,-158.27,0.00028716,7]
[425822792,1781939457000,-4458.4766346,0.00028707,2]
[425822799,1781939457000,-500.0,0.00028737,2]
[425822826,1781939457000,-151.0,0.00028932,30]
[425822815,1781939457000,-1441.5288939,0.00028858,2]
[425822824,1781939457000,-710.0,0.00028929,30]
[425822845,1781939457000,-500.0,0.00028976,30]
[425822850,1781939457000,-6500.0,0.00029,5]
[425822859,1781939457000,-166.97,0.00029132,7]
[425822852,1781939457000,-857.0,0.00029,7]
[425822857,1781939457000,-164.31,0.00029132,30]
[425822861,1781939457000,-150.0,0.00029143,30]
[425822853,1781939457000,-150.0,0.00029029,30]
[425822854,1781939457000,-157.09,0.0002906,30]
[425822843,1781939457000,-500.0,0.00028976,30]
[425822858,1781939457000,-162.96,0.00029132,30]
[425822856,1781939457000,-150.0,0.00029118,30]
[425822851,1781939457000,-150.0,0.00029,30]
[425822860,1781939457000,-150.0,0.00029143,30]
[425822863,1781939457000,-158.27,0.00029146,2]
[425822866,1781939457000,-157.12,0.00029232,7]
[425822865,1781939457000,-150.0,0.00029206,30]
[425822862,1781939457000,-157.09,0.00029146,2]
[425822825,1781939457000,-573.0,0.00028932,30]
[425822855,1781939457000,-158.27,0.0002906,30]
[425822842,1781939457000,-500.0,0.00028976,2]
[425822864,1781939457000,-1441.5288939,0.00029163,2]
[425822846,1781939457000,-855.87,0.00028976,7]
[425822821,1781939457000,-151.0,0.00028929,30]
[425822828,1781939457000,-560.0,0.00028932,30]
[425822827,1781939457000,-174.0,0.00028932,30]
[425822829,1781939457000,-185.0,0.00028932,30]
[425822836,1781939457000,-162.96,0.00028964,2]
[425822831,1781939457000,-153.0,0.00028932,30]
[425822838,1781939457000,-158.27,0.00028974,7]
[425822840,1781939457000,-500.0,0.00028975,30]
[425822834,1781939457000,-150.0,0.00028941,30]
[425822830,1781939457000,-275.0,0.00028932,30]
[425822832,1781939457000,-158.0,0.00028932,30]
[425822839,1781939457000,-500.0,0.00028975,30]
[425822844,1781939457000,-500.0,0.00028976,30]
[425822849,1781939457000,-2816.54576312,0.00029,2]
[425822847,1781939457000,-855.87,0.00028976,7]
[425822841,1781939457000,-500.0,0.00028976,2]
[425822837,1781939457000,-157.09,0.00028974,7]
[425822833,1781939457000,-262.0,0.00028932,30]
[425822835,1781939457000,-164.31,0.00028964,2]
[425822848,1781939457000,-855.87,0.00028976,7]
[425822871,1781939458000,-227.56872536,0.000149,2]
[425822872,1781939458000,-2584.62480382,0.00021273,2]
[425822869,1781939458000,2401.51650709,0.000149,2]
[425822868,1781939458000,-8838.43468087,0.00029262,2]
[425822867,1781939458000,-158.32,0.00029232,7]
[425822870,1781939458000,-774.77512181,0.000149,2]
[425822873,1781939541000,400.91229238,0.00030136,120]
[425822874,1781939741000,327.52,0.00026716,120]
[425822875,1781939742000,327.52,0.00029388,120]
[425822876,1781939861000,220.62,0.00028874,120]
[425822877,1781939889000,-237.14579313,0.00012895,2]
[425822878,1781939937000,-150.0,0.00012508,2]
[425822879,1781939962000,166.66,0.00021939,30]
[425822880,1781939991000,-150.0,0.00012894,2]
[425822881,1781940045000,-166.00205519,0.00012893,2]
[425822883,1781940099000,16269.97544553,0.00030137,120]
[425822882,1781940099000,-150.0,0.00012892,2]
[425822884,1781940122000,10000.0,0.00030137,120]
[425822885,1781940152000,-150.0,0.00012893,2]
[425822886,1781940205000,-264.04636397,0.00012892,2]
[425822887,1781940415000,-184.83245478,0.0001289,2]
[425822889,1781940469000,-150.0,0.00012889,2]
[425822890,1781940522000,-500.0,0.0001289,2]
[425822891,1781940540000,-216.28381402,0.0001289,2]
[425822892,1781940593000,-225.03055852,0.00012889,2]
[425822909,1781940632000,-500.0,0.00012889,2]
[425822904,1781940632000,-493.58531369,0.00012889,2]
[425822910,1781940632000,-500.0,0.00012889,2]
[425822908,1781940632000,-500.0,0.00012889,2]
[425822907,1781940632000,-500.0,0.00012889,2]
[425822906,1781940632000,-500.0,0.00012889,2]
[425822905,1781940632000,-500.0,0.00012889,2]
[425822897,1781940632000,-150.0,0.00012888,2]
[425822903,1781940632000,-6.41468631,0.00012889,2]
[425822900,1781940632000,-26.70816643,0.00012889,2]
[425822901,1781940632000,-500.0,0.00012889,2]
[425822899,1781940632000,-473.29183357,0.00012889,2]
[425822898,1781940632000,-500.0,0.00012889,2]
[425822912,1781940632000,-482.00189098,0.00012889,2]
[425822902,1781940632000,-500.0,0.00012889,2]
[425822911,1781940632000,-500.0,0.00012889,2]
[425822928,1781940632000,-150.0,0.00014421,2]
[425822914,1781940632000,-500.0,0.00012889,2]
[425822913,1781940632000,-500.0,0.00012889,2]
[425822940,1781940632000,-314.62729366,0.00014898,2]
[425822938,1781940632000,-214906.40910365,0.00014898,2]
[425822935,1781940632000,-11548.99865323,0.00014809,2]
[425822930,1781940632000,-848.07741484,0.00014545,2]
[425822931,1781940632000,-210.0,0.00014562,2]
[425822926,1781940632000,-150.0,0.00014279,2]
[425822934,1781940632000,-2983.13770094,0.00014809,2]
[425822922,1781940632000,-1000.0,0.00012894,2]
[425822920,1781940632000,-1000.0,0.00012894,2]
[425822919,1781940632000,-1000.0,0.00012894,2]
[425822915,1781940632000,-500.0,0.00012889,2]
[425822921,1781940632000,-1000.0,0.00012894,2]
[425822924,1781940632000,-255.0,0.00013996,2]
[425822916,1781940632000,-150.0,0.00012893,2]
[425822953,1781940647000,-2401.51650709,0.00014898,2]
[425822955,1781940647000,-5552.2,0.00014898,2]
[425822954,1781940647000,-292.688,0.00014898,2]
[425822984,1781940648000,-353.9,0.00016438,2]
[425822981,1781940648000,-433.0,0.00015195,2]
[425822979,1781940648000,-930.38,0.00014999,2]
[425822982,1781940648000,-151.0,0.0001584,2]
[425822980,1781940648000,-930.38,0.00014999,2]
[425822986,1781940648000,-500.0,0.00016438,2]
[425822983,1781940648000,-1500.0,0.00016014,2]
[425822985,1781940648000,-500.0,0.00016438,2]
[425822995,1781940648000,-500.0,0.00016438,2]
[425822987,1781940648000,-500.0,0.00016438,2]
[425822989,1781940648000,-500.0,0.00016438,2]
[425822991,1781940648000,-500.0,0.00016438,2]
[425822990,1781940648000,-500.0,0.00016438,2]
[425822993,1781940648000,-500.0,0.00016438,2]
[425822992,1781940648000,-500.0,0.00016438,2]
[425822977,1781940648000,-930.38,0.00014999,2]
[425822994,1781940648000,-500.0,0.00016438,2]
[425823000,1781940648000,-500.0,0.00016438,2]
[425822988,1781940648000,-500.0,0.00016438,2]
[425822978,1781940648000,-930.38,0.00014999,2]
[425822966,1781940648000,-152.0,0.00014999,2]
[425822973,1781940648000,-500.0,0.00014999,2]
[425822996,1781940648000,-500.0,0.00016438,2]
[425822956,1781940648000,-8808.44654329,0.00014898,2]
[425822957,1781940648000,-8947.21879473,0.00014898,2]
[425822958,1781940648000,-8943.78386462,0.00014898,2]
[425822959,1781940648000,-9077.54866152,0.00014898,2]
[425822960,1781940648000,-5111.08673616,0.00014898,2]
[425822962,1781940648000,-291.51088287,0.00014898,2]
[425822963,1781940648000,-235010.85561241,0.00014898,2]
[425822961,1781940648000,-342.108,0.00014898,2]
[425822964,1781940648000,-8658.49927612,0.00014909,2]
[425822965,1781940648000,-500.0,0.00014998,2]
[425822967,1781940648000,-152.0,0.00014999,2]
[425822968,1781940648000,-151.0,0.00014999,2]
[425822970,1781940648000,-315.0,0.00014999,2]
[425822975,1781940648000,-500.0,0.00014999,2]
[425822974,1781940648000,-500.0,0.00014999,2]
[425822972,1781940648000,-500.0,0.00014999,2]
[425822969,1781940648000,-151.0,0.00014999,2]
[425822971,1781940648000,-152.0,0.00014999,2]
[425822976,1781940648000,-500.0,0.00014999,2]
[425822997,1781940648000,-500.0,0.00016438,2]
[425823037,1781940648000,-1734.62772924,0.00018206,2]
[425822999,1781940648000,-500.0,0.00016438,2]
[425823024,1781940648000,-1613.0535,0.0001711,2]
[425823026,1781940648000,-2983.13770092,0.00017393,2]
[425823025,1781940648000,-1697.53293646,0.00017353,2]
[425823027,1781940648000,-1672.7364795,0.00017658,2]
[425823030,1781940648000,-199.5,0.00017893,2]
[425823029,1781940648000,-150.99,0.00017728,2]
[425823032,1781940648000,-1252.0,0.00017927,2]
[425823031,1781940648000,-1123.52,0.000179,2]
[425823023,1781940648000,-250.0,0.00017031,2]
[425823028,1781940648000,-260.99,0.00017728,2]
[425822998,1781940648000,-344.20190921,0.00016438,2]
[425823035,1781940648000,-486.14063385,0.00018068,2]
[425823036,1781940648000,-11548.99865315,0.00018163,2]
[425823042,1781940648000,-11150.37,0.00018639,2]
[425823039,1781940648000,-500.0,0.00018233,2]
[425823040,1781940648000,-353.9,0.0001841,2]
[425823041,1781940648000,-200.0,0.00018577,2]
[425823038,1781940648000,-1527.66,0.0001822,2]
[425823033,1781940648000,-453.39,0.00017953,2]
[425823021,1781940648000,-736.0,0.0001651,2]
[425823034,1781940648000,-150.0,0.00018019,2]
[425823022,1781940648000,-1555.5,0.00016562,2]
[425823017,1781940648000,-500.0,0.00016438,2]
[425823001,1781940648000,-500.0,0.00016438,2]
[425823003,1781940648000,-500.0,0.00016438,2]
[425823004,1781940648000,-500.0,0.00016438,2]
[425823005,1781940648000,-500.0,0.00016438,2]
[425823006,1781940648000,-500.0,0.00016438,2]
[425823007,1781940648000,-500.0,0.00016438,2]
[425823011,1781940648000,-500.0,0.00016438,2]
[425823008,1781940648000,-500.0,0.00016438,2]
[425823002,1781940648000,-500.0,0.00016438,2]
[425823010,1781940648000,-500.0,0.00016438,2]
[425823012,1781940648000,-500.0,0.00016438,2]
[425823013,1781940648000,-500.0,0.00016438,2]
[425823015,1781940648000,-500.0,0.00016438,2]
[425823014,1781940648000,-500.0,0.00016438,2]
[425823016,1781940648000,-500.0,0.00016438,2]
[425823020,1781940648000,-11548.99865315,0.00016486,2]
[425823019,1781940648000,-500.0,0.00016438,2]
[425823009,1781940648000,-500.0,0.00016438,2]
[425823018,1781940648000,-500.0,0.00016438,2]
[425823081,1781940649000,-270.0,0.00020671,2]
[425823080,1781940649000,-2665.13634009,0.00020638,7]
[425823078,1781940649000,-10817.41,0.00020548,2]
[425823076,1781940649000,-353.9,0.00020381,2]
[425823075,1781940649000,-166.66,0.00020267,2]
[425823073,1781940649000,-190.6380115,0.0002,2]
[425823077,1781940649000,-2005.9555727,0.00020398,2]
[425823074,1781940649000,-233.51,0.00020058,2]
[425823070,1781940649000,-190.63801148,0.0002,2]
[425823079,1781940649000,-316.517853,0.00020597,7]
[425823072,1781940649000,-190.63801148,0.0002,2]
[425823082,1781940649000,-166.66,0.00020685,2]
[425823090,1781940649000,-151.0,0.00020946,2]
[425823086,1781940649000,-151.0,0.00020946,2]
[425823087,1781940649000,-151.0,0.00020946,2]
[425823088,1781940649000,-151.0,0.00020946,2]
[425823089,1781940649000,-151.0,0.00020946,2]
[425823085,1781940649000,-151.0,0.00020946,2]
[425823084,1781940649000,-200.0,0.00020946,2]
[425823092,1781940649000,-151.0,0.00020946,2]
[425823093,1781940649000,-151.0,0.00020946,2]
[425823091,1781940649000,-151.0,0.00020946,2]
[425823094,1781940649000,-500.0,0.00020946,2]
[425823069,1781940649000,-190.63801148,0.0002,2]
[425823083,1781940649000,-3823.0893,0.00020848,2]
[425823068,1781940649000,-452.0,0.0002,2]
[425823095,1781940649000,-151.0,0.00020946,2]
[425823067,1781940649000,-171.075569,0.0002,2]
[425823043,1781940649000,-246.74,0.00018693,2]
[425823047,1781940649000,-150.0,0.00018904,2]
[425823044,1781940649000,-1798.80895522,0.00018754,2]
[425823048,1781940649000,-150.0,0.00018904,2]
[425823046,1781940649000,-150.0,0.00018904,2]
[425823045,1781940649000,-348.56550711,0.00018862,2]
[425823049,1781940649000,-170.12940884,0.00018904,2]
[425823053,1781940649000,-233.51,0.00019003,2]
[425823052,1781940649000,-161.03,0.00018998,2]
[425823055,1781940649000,-585.0,0.00019474,2]
[425823050,1781940649000,-500.0,0.00018932,2]
[425823071,1781940649000,-190.63801148,0.0002,2]
[425823054,1781940649000,-1865.36488656,0.00019302,2]
[425823060,1781940649000,-2983.13770092,0.00019978,2]
[425823056,1781940649000,-446.53,0.00019824,2]
[425823057,1781940649000,-11548.99865315,0.00019839,2]
[425823059,1781940649000,-1934.38338736,0.0001985,2]
[425823058,1781940649000,-166.66,0.0001985,2]
[425823061,1781940649000,-182.0,0.0002,2]
[425823062,1781940649000,-530.0,0.0002,2]
[425823066,1781940649000,-379.0,0.0002,2]
[425823064,1781940649000,-152.0,0.0002,2]
[425823063,1781940649000,-819.0,0.0002,2]
[425823065,1781940649000,-152.0,0.0002,2]
[425823051,1781940649000,-342.99,0.00018958,2]
[425823100,1781940649000,-500.0,0.00020946,2]
[425823152,1781940649000,-169.58,0.00021918,2]
[425823101,1781940649000,-2080.17592889,0.00020946,2]
[425823132,1781940649000,-156.0,0.00021,2]
[425823128,1781940649000,-220.62,0.00020999,2]
[425823129,1781940649000,-182.0,0.00021,2]
[425823130,1781940649000,-530.0,0.00021,2]
[425823131,1781940649000,-819.0,0.00021,2]
[425823134,1781940649000,-379.0,0.00021,2]
[425823136,1781940649000,-166.66,0.00021103,2]
[425823133,1781940649000,-152.0,0.00021,2]
[425823135,1781940649000,-452.0,0.00021,2]
[425823139,1781940649000,-43171.68,0.00021273,2]
[425823140,1781940649000,-327.52,0.00021373,2]
[425823125,1781940649000,-500.0,0.00020946,2]
[425823143,1781940649000,-11548.99865315,0.00021516,2]
[425823138,1781940649000,-7033.33696806,0.00021138,7]
[425823141,1781940649000,-200.0,0.00021494,2]
[425823145,1781940649000,-930.38,0.00021625,2]
[425823144,1781940649000,-166.66,0.00021521,2]
[425823146,1781940649000,-12407.64009973,0.00021638,7]
[425823147,1781940649000,-18561.08753698,0.00021638,7]
[425823148,1781940649000,-25113.8052,0.00021638,7]
[425823150,1781940649000,-625.7995,0.00021818,2]
[425823149,1781940649000,-160.02071421,0.00021644,2]
[425823151,1781940649000,-5000.0,0.00021918,2]
[425823098,1781940649000,-151.0,0.00020946,2]
[425823142,1781940649000,-2157.14243826,0.00021494,2]
[425823126,1781940649000,-151.0,0.00020946,2]
[425823137,1781940649000,-233.51,0.00021114,2]
[425823123,1781940649000,-151.0,0.00020946,2]
[425823099,1781940649000,-151.0,0.00020946,2]
[425823127,1781940649000,-151.0,0.00020946,2]
[425823097,1781940649000,-500.0,0.00020946,2]
[425823102,1781940649000,-151.0,0.00020946,2]
[425823103,1781940649000,-151.0,0.00020946,2]
[425823104,1781940649000,-500.0,0.00020946,2]
[425823105,1781940649000,-151.0,0.00020946,2]
[425823106,1781940649000,-151.0,0.00020946,2]
[425823107,1781940649000,-500.0,0.00020946,2]
[425823110,1781940649000,-500.0,0.00020946,2]
[425823109,1781940649000,-151.0,0.00020946,2]
[425823111,1781940649000,-151.0,0.00020946,2]
[425823108,1781940649000,-151.0,0.00020946,2]
[425823096,1781940649000,-151.0,0.00020946,2]
[425823112,1781940649000,-500.0,0.00020946,2]
[425823113,1781940649000,-151.0,0.00020946,2]
[425823119,1781940649000,-500.0,0.00020946,2]
[425823121,1781940649000,-151.0,0.00020946,2]
[425823122,1781940649000,-500.0,0.00020946,2]
[425823120,1781940649000,-151.0,0.00020946,2]
[425823124,1781940649000,-151.0,0.00020946,2]
[425823117,1781940649000,-151.0,0.00020946,2]
[425823116,1781940649000,-151.0,0.00020946,2]
[425823115,1781940649000,-500.0,0.00020946,2]
[425823114,1781940649000,-151.0,0.00020946,2]
[425823118,1781940649000,-151.0,0.00020946,2]
[425823165,1781940650000,-150.0,0.00021918,2]
[425823174,1781940650000,-500.0,0.00022,3]
[425823173,1781940650000,-203.91261035,0.00021918,2]
[425823171,1781940650000,-150.0,0.00021918,2]
[425823172,1781940650000,-150.0,0.00021918,2]
[425823170,1781940650000,-150.0,0.00021918,2]
[425823168,1781940650000,-150.0,0.00021918,2]
[425823175,1781940650000,-500.0,0.00022,3]
[425823169,1781940650000,-150.0,0.00021918,2]
[425823167,1781940650000,-150.0,0.00021918,2]
[425823164,1781940650000,-150.0,0.00021918,2]
[425823159,1781940650000,-150.0,0.00021918,2]
[425823162,1781940650000,-150.0,0.00021918,2]
[425823163,1781940650000,-150.0,0.00021918,2]
[425823161,1781940650000,-150.0,0.00021918,2]
[425823160,1781940650000,-150.0,0.00021918,2]
[425823158,1781940650000,-150.0,0.00021918,2]
[425823157,1781940650000,-150.0,0.00021918,2]
[425823156,1781940650000,-150.0,0.00021918,2]
[425823155,1781940650000,-150.0,0.00021918,2]
[425823154,1781940650000,-150.0,0.00021918,2]
[425823153,1781940650000,-150.0,0.00021918,2]
[425823178,1781940650000,-530.0,0.00022,2]
[425823166,1781940650000,-150.0,0.00021918,2]
[425823176,1781940650000,-500.0,0.00022,3]
[425823183,1781940650000,-12598.19,0.00022,2]
[425823179,1781940650000,-819.0,0.00022,2]
[425823177,1781940650000,-182.0,0.00022,2]
[425823203,1781940650000,-379.0,0.00023,2]
[425823199,1781940650000,-153.03432694,0.00022893,2]
[425823201,1781940650000,-530.0,0.00023,2]
[425823200,1781940650000,-182.0,0.00023,2]
[425823198,1781940650000,-750.0,0.00022889,7]
[425823196,1781940650000,-1266.0,0.00022608,2]
[425823197,1781940650000,-1950.0,0.00022889,2]
[425823193,1781940650000,-200.0,0.0002259,2]
[425823195,1781940650000,-537.150451,0.00022601,2]
[425823194,1781940650000,-2319.72410669,0.0002259,2]
[425823191,1781940650000,-2983.13770092,0.00022562,2]
[425823202,1781940650000,-819.0,0.00023,2]
[425823190,1781940650000,-663.62,0.00022466,2]
[425823192,1781940650000,-176.0,0.00022586,2]
[425823181,1781940650000,-379.0,0.00022,2]
[425823182,1781940650000,-452.0,0.00022,2]
[425823184,1781940650000,-1765.08263732,0.00022,2]
[425823180,1781940650000,-158.0,0.00022,2]
[425823186,1781940650000,-2236.95670847,0.00022042,2]
[425823187,1781940650000,-2500.0,0.00022253,2]
[425823188,1781940650000,-353.9,0.00022353,2]
[425823189,1781940650000,-215.04166717,0.00022407,2]
[425823185,1781940650000,-200.0,0.00022042,2]
[425823229,1781940651000,-240.10127202,0.00024287,4]
[425823237,1781940651000,-151.73,0.00024658,2]
[425823231,1781940651000,-150.0,0.00024333,2]
[425823230,1781940651000,-353.9,0.00024324,2]
[425823232,1781940651000,-5528.0,0.000245,3]
[425823234,1781940651000,-471.81,0.00024658,2]
[425823233,1781940651000,-3172.18,0.00024643,7]
[425823235,1781940651000,-1000.0,0.00024658,2]
[425823228,1781940651000,-2586.85809042,0.00024234,2]
[425823240,1781940651000,-500.0,0.00024999,2]
[425823238,1781940651000,-2682.57183977,0.00024782,2]
[425823239,1781940651000,-11548.99865315,0.0002487,2]
[425823241,1781940651000,-186.0,0.00025,2]
[425823242,1781940651000,-533.0,0.00025,2]
[425823243,1781940651000,-831.0,0.00025,2]
[425823245,1781940651000,-455.70171519,0.00025,2]
[425823244,1781940651000,-392.0,0.00025,2]
[425823246,1781940651000,-369.19,0.00025,2]
[425823227,1781940651000,-9999.99,0.00024174,2]
[425823247,1781940651000,-369.19,0.00025,2]
[425823236,1781940651000,-151.94,0.00024658,2]
[425823226,1781940651000,-2726.84,0.00024174,2]
[425823214,1781940651000,-2494.55939288,0.00023686,2]
[425823224,1781940651000,-785.64,0.00024174,2]
[425823248,1781940651000,-369.19,0.00025,2]
[425823205,1781940651000,-857.0,0.00023,2]
[425823204,1781940651000,-452.0,0.00023,2]
[425823206,1781940651000,-200.0,0.00023138,2]
[425823209,1781940651000,-171.7956335,0.00023172,2]
[425823208,1781940651000,-174.88413524,0.00023172,2]
[425823211,1781940651000,-1266.0,0.00023293,2]
[425823210,1781940651000,-11548.99865315,0.00023193,2]
[425823212,1781940651000,-220.62,0.00023624,2]
[425823225,1781940651000,-2978.31,0.00024174,2]
[425823207,1781940651000,-2405.55389863,0.00023138,2]
[425823215,1781940651000,-647.27666731,0.00023797,2]
[425823217,1781940651000,-277.0,0.00023978,2]
[425823216,1781940651000,-53024.0,0.000239,2]
[425823219,1781940651000,-530.0,0.00024,2]
[425823218,1781940651000,-182.0,0.00024,2]
[425823220,1781940651000,-819.0,0.00024,2]
[425823221,1781940651000,-379.0,0.00024,2]
[425823222,1781940651000,-452.0,0.00024,2]
[425823223,1781940651000,-327.52,0.00024044,2]
[425823213,1781940651000,-286.78306349,0.00023686,2]
[425823250,1781940651000,-179.76368085,0.00025002,2]
[425823279,1781940651000,-699.87819129,0.00026,2]
[425823254,1781940651000,-5528.0,0.000252,5]
[425823276,1781940651000,-424.98519286,0.00026,2]
[425823277,1781940651000,-1834.64521567,0.00026,2]
[425823278,1781940651000,-1370.29817587,0.00026,2]
[425823280,1781940651000,-1033.75890619,0.00026,2]
[425823281,1781940651000,-169.96,0.0002607,2]
[425823282,1781940651000,-169.96,0.0002607,2]
[425823285,1781940651000,-240.10127202,0.0002627,4]
[425823283,1781940651000,-171.7956335,0.00026075,2]
[425823284,1781940651000,-220.62,0.00026249,2]
[425823274,1781940651000,-2726.84,0.00025786,2]
[425823287,1781940651000,-424.98519286,0.000263,2]
[425823288,1781940651000,-1834.64521567,0.000263,2]
[425823289,1781940651000,-1370.29817587,0.000263,2]
[425823291,1781940651000,-1033.75890619,0.000263,2]
[425823293,1781940651000,-1037.84864387,0.0002647,2]
[425823292,1781940651000,-2991.49051684,0.00026426,2]
[425823290,1781940651000,-699.87819129,0.000263,2]
[425823251,1781940651000,-151.94,0.00025079,7]
[425823296,1781940651000,-150.0,0.000265,5]
[425823295,1781940651000,-446.125382,0.000265,2]
[425823286,1781940651000,-353.9,0.00026296,2]
[425823275,1781940651000,-2884.75459676,0.00025878,2]
[425823294,1781940651000,-424.881317,0.00026498,2]
[425823271,1781940651000,-785.64,0.00025786,2]
[425823273,1781940651000,-2978.31,0.00025786,2]
[425823253,1781940651000,-2983.13770092,0.00025147,2]
[425823252,1781940651000,-151.73,0.00025079,7]
[425823255,1781940651000,-240.10127202,0.00025279,4]
[425823256,1781940651000,-1037.84864388,0.000253,2]
[425823259,1781940651000,-174.88413524,0.00025494,2]
[425823257,1781940651000,-2781.82699784,0.0002533,2]
[425823258,1781940651000,-206.0,0.00025416,2]
[425823261,1781940651000,-151.94,0.000255,30]
[425823260,1781940651000,-150.3,0.000255,30]
[425823249,1781940651000,-151.00138861,0.00025002,2]
[425823263,1781940651000,-1527.66,0.00025508,2]
[425823262,1781940651000,-151.73,0.000255,30]
[425823269,1781940651000,-150.0,0.00025688,2]
[425823270,1781940651000,-930.38,0.00025785,2]
[425823268,1781940651000,-386.90705936,0.00025688,2]
[425823272,1781940651000,-43171.68,0.00025786,2]
[425823266,1781940651000,-500.0,0.00025688,2]
[425823264,1781940651000,-176.11,0.00025553,2]
[425823265,1781940651000,-500.0,0.00025688,2]
[425823267,1781940651000,-500.0,0.00025688,2]
[425823321,1781940652000,-424.98519286,0.000271,2]
[425823325,1781940652000,-1033.75890619,0.000271,2]
[425823320,1781940652000,-150.0,0.00027099,7]
[425823323,1781940652000,-1370.29817587,0.000271,2]
[425823322,1781940652000,-1834.64521567,0.000271,2]
[425823326,1781940652000,-210.0,0.00027123,2]
[425823324,1781940652000,-699.87819129,0.000271,2]
[425823318,1781940652000,-150.0,0.00027099,7]
[425823329,1781940652000,-150.0,0.00027187,7]
[425823328,1781940652000,-243.490259,0.00027181,7]
[425823330,1781940652000,-150.0,0.00027276,7]
[425823331,1781940652000,-930.38,0.00027343,2]
[425823333,1781940652000,-150.0,0.00027397,2]
[425823332,1781940652000,-150.0,0.00027364,7]
[425823336,1781940652000,-542.68886294,0.00027397,2]
[425823337,1781940652000,-300.0,0.00027397,2]
[425823319,1781940652000,-150.0,0.00027099,7]
[425823334,1781940652000,-516.4258457,0.00027397,2]
[425823327,1781940652000,-503.0,0.00027137,2]
[425823317,1781940652000,-150.0,0.00027099,7]
[425823307,1781940652000,-699.87819129,0.000268,2]
[425823315,1781940652000,-150.63149704,0.00027099,7]
[425823335,1781940652000,-1500.0,0.00027397,2]
[425823298,1781940652000,-11548.99865315,0.00026546,2]
[425823299,1781940652000,-424.98519286,0.000266,2]
[425823297,1781940652000,-164.624921,0.000265,2]
[425823301,1781940652000,-1370.29817587,0.000266,2]
[425823300,1781940652000,-1834.64521567,0.000266,2]
[425823302,1781940652000,-699.87819129,0.000266,2]
[425823303,1781940652000,-1033.75890619,0.000266,2]
[425823316,1781940652000,-152.70737994,0.00027099,7]
[425823305,1781940652000,-1834.64521567,0.000268,2]